[Event "50th Ciudad Sevilla 2024"]
[Site "Sevilla"]
[Date "2025.01.14"]
[Round "5.20"]
[White "Kreken, Eivind Grunt"]
[Black "Lacrosse, Marc"]
[Result "1/2-1/2"]
[Annotator "TA"]
[ECO "C70"]
[WhiteElo "2302"]
[BlackElo "2065"]
[PlyCount "147"]
[EventDate "2025.01.10"]
[EventType "swiss"]
[EventCountry "ESP"]
[SourceTitle "playchess.com"]
[Source "ChessBase"]
[SourceQuality "1"]
[TimeControl "90+30"]

{[%evp 9,147,32,21,23,27,26,34,0,0,-18,0,-8,-11,-25,-11,-30,0,0,0,-27,-26,-30,0,-7,0,0,0,-53,0,3,2,-38,-31,-31,-20,-59,-71,-59,-79,-64,-54,-74,-11,-145,-138,-263,-272,-316,-310,-340,-337,-335,-293,-314,-320,-375,-385,-343,-234,-439,-283,-283,-274,-278,-149,-127,0,0,0,-47,-6,-8,-11,-138,-141,-171,-175,-215,-201,-188,-161,-161,-161,-283,-260,-264,-251,-242,-213,-184,-150,-133,0,-8,0,-41,-31,-529,-510,-471,0,0,9,8,14,0,0,0,0,0,16,0,18,8,14,6,14,14,30,0,25,25,25,25,81,81,81,84,101,81,81,81,112,8,8,0,118,0,8,0]} 1. e4 {[%emt 0:00:00]} e5 {[%emt 0:00:00]} 2. Nf3 {[%emt 0:00:00]} Nc6 {[%emt 0:00:00]} 3. Bb5 {[%emt 0:00:00]} a6 {[%emt 0:00:00]} 4. Ba4 {[%emt 0:00:00]} Nge7 {[%emt 0:00:00]} 5. O-O {[%emt 0:00:00]} Ng6 {[%emt 0:00:00]} 6. d4 {[%emt 0:00:00]} exd4 {[%emt 0:00:00]} 7. Nxd4 {[%emt 0:00:00]} Bc5 {[%emt 0:00:00]} 8. Nxc6 {[%emt 0:00:00]} dxc6 {[%emt 0:00:00]} 9. Qxd8+ {[%emt 0:00:00]} Kxd8 {[%emt 0:00:00]} 10. Nc3 {[%emt 0:00:00]} Ke7 {[%emt 0:00:00]} 11. Re1 {[%emt 0:00:00]} Rd8 {[%emt 0:00:00]} 12. Kf1 {[%emt 0:00:00]} Bb4 {[%emt 0:00:00]} 13. Bb3 {[%emt 0:00:00]} a5 {[%emt 0:00:00][%cal Oa5a4]} 14. a4 {[%emt 0:00:00]} b6 {[%emt 0:00:00]} 15. f4 {[%emt 0:00:00]} h5 {[%emt 0:00:00]} 16. Be3 {[%emt 0:00:00]} Ba6+ {[%emt 0:00:00]} 17. Kf2 {[%emt 0:00:00]} Rd7 {[%emt 0:00:32]} 18. e5 {[%emt 0:00:00]} (18. h3 $11) 18... Bxc3 {[%emt 0:02:32]} (18... Nh4 $1 $15) 19. bxc3 $11 {[%emt 0:00:00]} c5 {[%emt 0:04:16]} 20. g3 {[%emt 0:00:00][%cal Oe5e6]} c4 {[%emt 0:00:31]} 21. Ba2 {[%emt 0:00:00]} Ke6 {[%emt 0:01:00]} 22. h3 {[%emt 0:00:00]} Ne7 {[%emt 0:01:26]} 23. g4 {[%emt 0:00:00]} hxg4 {[%emt 0:00:12]} 24. hxg4 {[%emt 0:00:00]} g6 {[%emt 0:00:13]} 25. Kg3 {[%emt 0:01:14]} Rad8 {[%emt 0:00:57]} (25... Rh8 $17) 26. Rf1 {[%emt 0:04:42]} (26. Rh1 $11) 26... Nd5 $17 {[%emt 0:01:37][%csl LRc3,LRe3]} 27. f5+ {[%emt 0:04:14]} (27. Bd2 $17 {is a better defense.}) 27... gxf5 $1 $19 {[%emt 0:00:13]} 28. gxf5+ {[%emt 0:00:11]} Kxe5 {[%emt 0:00:27]} 29. Bd4+ {[%emt 0:00:15]} Kd6 {[%emt 0:00:06]} 30. Rae1 {[%emt 0:00:21]} c5 {[%emt 0:00:52]} 31. Be5+ {[%emt 0:00:35]} Kc6 {[%emt 0:00:12]} 32. f6 {[%emt 0:00:09]} Rg8+ {[%emt 0:01:10]} 33. Kf3 {[%emt 0:00:13]} Rg5 {[%emt 0:00:15]} 34. Ke4 $2 {[%emt 0:04:15]} (34. Rg1 Rxe5 35. Rxe5) 34... Rxe5+ {[%emt 0:00:49]} 35. Kxe5 {[%emt 0:00:07]} Nxc3 {[%emt 0:00:09]} 36. Bb1 {[%emt 0:00:40]} Rd4 {[%emt 0:01:10]} (36... Rd5+ $19 37. Kf4 Bc8 (37... Nxa4 38. Rf3 $17)) 37. Rf3 $17 {[%emt 0:01:45]} Nxb1 {[%emt 0:01:00]} (37... Nxa4 $17 38. c3 Rd6) 38. Rxb1 {[%emt 0:00:01][%mdl 4096] Endgame KRR-KRB} Bc8 {[%emt 0:00:30]} 39. Rg1 {[%emt 0:00:23]} (39. c3 $11 Rd5+ 40. Kf4) 39... c3 {[%emt 0:00:36]} 40. Rxc3 {[%emt 0:00:29]} Rxa4 {[%emt 0:00:03]} 41. Rd1 {[%emt 0:00:21]} (41. Rb1 $11 {remains equal.}) 41... Rh4 {[%emt 0:01:01]} 42. Rd8 {[%emt 0:00:48] Inhibits a4.} Rh5+ {[%emt 0:00:38]} 43. Ke4 {[%emt 0:01:28]} Bf5+ {[%emt 0:00:10]} 44. Kf4 {[%emt 0:00:59]} Be6 {[%emt 0:00:29]} 45. Rf3 {[%emt 0:00:27]} a4 {[%emt 0:00:39]} 46. Kg3 {[%emt 0:00:45]} (46. Re8 $142 Rf5+ 47. Kg3 Rxf3+ 48. Kxf3 Bd5+ 49. Ke3) 46... b5 $19 {[%emt 0:00:32]} 47. Ra8 {[%emt 0:00:21]} Kd5 {[%emt 0:00:38]} 48. Ra6 {[%emt 0:00:32]} Rh3+ {[%emt 0:00:27]} 49. Kf4 {[%emt 0:00:22]} Rh4+ {[%emt 0:00:28]} 50. Ke3 {[%emt 0:00:05]} c4 {[%emt 0:00:32]} (50... Ke5 $17 {...Rh2 is the strong threat.} 51. Ra5 Bc4 (51... Re4+ 52. Kd2 $17)) 51. Kd2 {[%emt 0:00:20]} Rd4+ {[%emt 0:00:28]} 52. Kc3 {[%emt 0:00:36]} Rd1 {[%emt 0:00:30]} (52... Kc5 53. Rxe6 b4+ (53... fxe6 54. f7 $16) 54. Kb2 a3+ (54... fxe6 55. f7 $16) 55. Kc1 fxe6 56. f7 $16) 53. Kb2 $2 {[%emt 0:01:04][%mdl 8192]} (53. Rf4 $15) 53... b4 $1 {[%emt 0:00:33]} (53... Kc5 $2 54. Rxe6 fxe6 55. f7 $18) 54. c3 {[%emt 0:00:39]} a3+ $2 {[%emt 0:00:31]} ({Worse is} 54... Rd2+ 55. Kc1 bxc3 56. Rxa4 $11) ({Black should play} 54... Ke4 $19 55. Rf2 Ke3) 55. Kc2 $11 {[%emt 0:00:10]} Rh1 {[%emt 0:00:33] ( -> ...b3+)} 56. cxb4 {[%emt 0:00:12]} Rh2+ {[%emt 0:00:29]} 57. Kb1 {[%emt 0:00:44]} Rh1+ {[%emt 0:00:26]} 58. Ka2 {[%emt 0:00:13]} Ke5 {[%emt 0:00:23]} 59. Rfxa3 {[%emt 0:01:10]} Rh2+ {[%emt 0:00:33]} 60. Kb1 {[%emt 0:00:31]} Rh1+ {[%emt 0:00:31]} 61. Kc2 {[%emt 0:00:09]} Rh2+ {[%emt 0:00:28]} 62. Kd1 {[%emt 0:00:11]} Rh1+ {[%emt 0:00:11]} 63. Ke2 {[%emt 0:00:06]} Rh2+ {[%emt 0:00:24]} 64. Kf3 {[%emt 0:00:23]} Rb2 {[%emt 0:00:14]} 65. Re3+ {[%emt 0:00:40]} Kxf6 {[%emt 0:00:11]} 66. Rb6 {[%emt 0:00:20]} Kf5 {[%emt 0:00:26]} (66... Rb3 $1 $11) 67. Rb5+ $16 {[%emt 0:00:23]} Kf6 {[%emt 0:00:10]} 68. Ke4 {[%emt 0:00:07]} Ke7 {[%emt 0:00:48]} 69. Ke5 {[%emt 0:00:20] Threatens to win with Rb7+.} Kd7 {[%emt 0:00:14]} 70. Kd4 {[%emt 0:00:58]} Kc6 {[%emt 0:00:41] [#]} 71. Rb8 {[%emt 0:00:29]} ({White has to play} 71. Ree5 $1 $16) 71... Kc7 $1 $11 {[%emt 0:00:15]} 72. Rb5 {[%emt 0:00:32]} (72. Ra8 $11) 72... Kc6 $1 $16 {[%emt 0:00:10] [#]} 73. Rb8 {[%emt 0:00:43]} (73. Ree5 $1 $16) 73... Kc7 $1 $11 {[%emt 0:00:13]} 74. Rb5 {[%emt 0:01:09]} 1/2-1/2

[Event "50th Ciudad Sevilla 2024"]
[Site "Sevilla"]
[Date "2025.01.15"]
[Round "6.1"]
[White "Iturrizaga Bonelli, Eduardo"]
[Black "Urazayev, Arystanbek"]
[Result "1/2-1/2"]
[Annotator "RC"]
[ECO "E73"]
[WhiteElo "2574"]
[BlackElo "2448"]
[PlyCount "62"]
[EventDate "2025.01.10"]
[EventType "swiss"]
[EventCountry "ESP"]
[SourceTitle "playchess.com"]
[Source "ChessBase"]
[SourceQuality "1"]
[TimeControl "5400+30"]

1. c4 {[%emt 0:08:20]} Nf6 {[%emt 0:00:06]} 2. d4 {[%emt 0:01:40]} g6 {[%emt 0:00:12]} 3. Nc3 {[%emt 0:00:11]} Bg7 {[%emt 0:00:16]} 4. e4 {[%emt 0:00:05]} d6 {[%emt 0:00:04]} 5. Be2 {[%emt 0:00:05]} O-O {[%emt 0:00:13]} 6. Be3 {[%emt 0:00:03]} a5 {[%emt 0:00:44]} 7. h4 {[%emt 0:02:00]} h5 {[%emt 0:01:49]} 8. f3 {[%emt 0:00:20]} Nc6 {[%emt 0:00:04]} 9. d5 {[%emt 0:00:50]} Ne5 {[%emt 0:00:02]} 10. Nh3 {[%emt 0:00:37]} c6 {[%emt 0:02:40]} 11. Nf4 {[%emt 0:04:12]} Nfd7 {[%emt 0:04:07]} 12. Rc1 {[%emt 0:15:32]} Nb6 {[%emt 0:01:22]} 13. b3 {[%emt 0:02:20]} a4 {[%emt 0:00:11]} 14. O-O {[%emt 0:00:15]} axb3 {[%emt 0:09:22]} 15. axb3 {[%emt 0:00:46]} Nbd7 {[%emt 0:00:32]} 16. Ra1 {[%emt 0:04:39]} Rxa1 {[%emt 0:04:44]} 17. Qxa1 {[%emt 0:00:27]} Nc5 {[%emt 0:04:36]} 18. b4 {[%emt 0:03:49]} Na6 {[%emt 0:04:56]} 19. Qa3 {[%emt 0:01:06]} c5 {[%emt 0:02:17]} 20. bxc5 {[%emt 0:34:54]} Nxc5 {[%emt 0:02:40]} 21. g3 {[%emt 0:00:06]} b6 {[%emt 0:04:15]} 22. Rb1 {[%emt 0:16:02]} Bd7 {[%emt 0:04:07]} 23. Kg2 {[%emt 0:00:07]} Qc7 {[%emt 0:02:13]} 24. Nb5 {[%emt 0:02:52]} Qb7 {[%emt 0:08:27]} 25. Ra1 {[%emt 0:00:05]} Qc8 {[%emt 0:10:23]} 26. Na7 {[%emt 0:00:52]} Qc7 {[%emt 0:01:20]} 27. Nb5 {[%emt 0:00:09]} Qc8 {[%emt 0:00:15]} 28. Na7 {[%emt 0:00:06]} Qc7 {[%emt 0:01:10]} 29. Nb5 {[%emt 0:00:08]} Qc8 {[%emt 0:00:37]} 30. Na7 {[%emt 0:00:06]} Qc7 {[%emt 0:00:05]} 31. Nb5 {[%emt 0:00:48]} Qc8 {[%emt 0:00:04]} 1/2-1/2

[Event "50th Ciudad Sevilla 2024"]
[Site "Sevilla"]
[Date "2025.01.15"]
[Round "6.2"]
[White "Makhnev, Denis"]
[Black "Del Rio De Angelis, Salvador G."]
[Result "1/2-1/2"]
[Annotator "RC"]
[ECO "A50"]
[WhiteElo "2532"]
[BlackElo "2403"]
[PlyCount "76"]
[EventDate "2025.01.10"]
[EventType "swiss"]
[EventCountry "ESP"]
[SourceTitle "playchess.com"]
[Source "ChessBase"]
[SourceQuality "1"]
[TimeControl "5400+30"]

1. c4 {[%emt 0:04:30]} b6 {[%emt 0:00:18]} 2. d4 {[%emt 0:02:31]} Nf6 {[%emt 0:00:19]} 3. Nf3 {[%emt 0:00:31]} Bb7 {[%emt 0:00:30]} 4. g3 {[%emt 0:00:51]} g6 {[%emt 0:00:15]} 5. Bg2 {[%emt 0:01:19]} Bg7 {[%emt 0:00:09]} 6. O-O {[%emt 0:00:11]} O-O {[%emt 0:00:16]} 7. d5 {[%emt 0:00:46]} b5 {[%emt 0:00:24]} 8. Qb3 {[%emt 0:09:31]} Qc8 {[%emt 0:00:19]} 9. Qxb5 {[%emt 0:01:03]} c6 {[%emt 0:00:09]} 10. dxc6 {[%emt 0:00:13]} Bxc6 {[%emt 0:00:06]} 11. Qa5 {[%emt 0:02:51]} Bb7 {[%emt 0:01:17]} 12. Qa3 {[%emt 0:05:43]} d6 {[%emt 0:10:55]} 13. b3 {[%emt 0:01:00]} a5 {[%emt 0:02:35]} 14. Nbd2 {[%emt 0:00:39]} Nc6 {[%emt 0:27:56]} 15. Bb2 {[%emt 0:05:41]} e5 {[%emt 0:00:13]} 16. Rfc1 {[%emt 0:15:21]} Re8 {[%emt 0:01:01]} 17. Ng5 {[%emt 0:09:01]} Nd4 {[%emt 0:05:44]} 18. Bxd4 {[%emt 0:01:13]} exd4 {[%emt 0:00:45]} 19. Bxb7 {[%emt 0:00:30]} Qxb7 {[%emt 0:00:05]} 20. Re1 {[%emt 0:00:16]} Qb4 {[%emt 0:04:31]} 21. Qxb4 {[%emt 0:06:25]} axb4 {[%emt 0:00:08]} 22. Kf1 {[%emt 0:09:30]} h6 {[%emt 0:06:08]} 23. Nh3 {[%emt 0:02:23]} Ng4 {[%emt 0:04:58]} 24. Nf4 {[%emt 0:07:46]} d3 {[%emt 0:00:38]} 25. exd3 {[%emt 0:00:05]} Bxa1 {[%emt 0:00:42]} 26. Rxa1 {[%emt 0:00:05]} Nf6 {[%emt 0:05:16]} 27. d4 {[%emt 0:05:05]} Ne4 {[%emt 0:01:10]} 28. Nxe4 {[%emt 0:01:14]} Rxe4 {[%emt 0:00:06]} 29. Nd5 {[%emt 0:00:05]} Rxd4 {[%emt 0:00:12]} 30. Nxb4 {[%emt 0:00:05]} Rd2 {[%emt 0:00:28]} 31. Re1 {[%emt 0:01:10]} Kf8 {[%emt 0:03:09]} 32. Re2 {[%emt 0:00:43]} Rd1+ {[%emt 0:00:39]} 33. Kg2 {[%emt 0:00:05]} Re8 {[%emt 0:00:33]} 34. Rc2 {[%emt 0:02:19]} Ree1 {[%emt 0:00:34]} 35. Nd5 {[%emt 0:02:43]} Rc1 {[%emt 0:00:08]} 36. Rb2 {[%emt 0:00:05]} Rb1 {[%emt 0:00:05]} 37. Rc2 {[%emt 0:00:03]} Rbc1 {[%emt 0:00:05]} 38. Rb2 {[%emt 0:01:23]} Rb1 {[%emt 0:00:06]} 1/2-1/2

[Event "50th Ciudad Sevilla 2024"]
[Site "Sevilla"]
[Date "2025.01.15"]
[Round "6.3"]
[White "Vignesh N R"]
[Black "Druska, Juraj"]
[Result "1/2-1/2"]
[Annotator "RC"]
[ECO "C42"]
[WhiteElo "2523"]
[BlackElo "2438"]
[PlyCount "45"]
[EventDate "2025.01.10"]
[EventType "swiss"]
[EventCountry "ESP"]
[SourceTitle "playchess.com"]
[Source "ChessBase"]
[SourceQuality "1"]
[TimeControl "5400+30"]

1. e4 {[%emt 0:00:06]} e5 {[%emt 0:05:28]} 2. Nf3 {[%emt 0:00:08]} Nf6 {[%emt 0:00:06]} 3. Nxe5 {[%emt 0:01:06]} d6 {[%emt 0:00:07]} 4. Nf3 {[%emt 0:00:03]} Nxe4 {[%emt 0:00:06]} 5. Bd3 {[%emt 0:03:11]} Nf6 {[%emt 0:04:11]} 6. O-O {[%emt 0:00:02]} Be7 {[%emt 0:00:07]} 7. c3 {[%emt 0:00:03]} O-O {[%emt 0:00:14]} 8. Bc2 {[%emt 0:00:03]} Bg4 {[%emt 0:06:40]} 9. d4 {[%emt 0:00:06]} c5 {[%emt 0:00:29]} 10. h3 {[%emt 0:06:11]} Bh5 {[%emt 0:00:10]} 11. Re1 {[%emt 0:03:26]} cxd4 {[%emt 0:01:48]} 12. g4 {[%emt 0:00:31]} Bg6 {[%emt 0:00:51]} 13. Nxd4 {[%emt 0:01:24]} Nc6 {[%emt 0:01:06]} 14. Nf5 {[%emt 0:00:26]} Re8 {[%emt 0:00:26]} 15. Bg5 {[%emt 0:03:17]} Qb6 {[%emt 0:16:42]} 16. Nxe7+ {[%emt 0:10:57]} Nxe7 {[%emt 0:03:55]} 17. Bxf6 {[%emt 0:07:04]} gxf6 {[%emt 0:15:17]} 18. Nd2 {[%emt 0:09:48]} Qxb2 {[%emt 0:03:50]} 19. Ne4 {[%emt 0:04:37]} Bxe4 {[%emt 0:00:44]} 20. Bxe4 {[%emt 0:00:06]} d5 {[%emt 0:01:05]} 21. Bg2 {[%emt 0:04:46]} Qxc3 {[%emt 0:03:41]} 22. Re3 {[%emt 0:04:29]} Qc6 {[%emt 0:10:36]} 23. Qd2 {[%emt 0:05:56]} 1/2-1/2

[Event "50th Ciudad Sevilla 2024"]
[Site "Sevilla"]
[Date "2025.01.15"]
[Round "6.4"]
[White "Kvaloy, Aksel Bu"]
[Black "Song, Yuxin"]
[Result "1-0"]
[Annotator "RC"]
[ECO "A46"]
[WhiteElo "2487"]
[BlackElo "2384"]
[PlyCount "155"]
[EventDate "2025.01.10"]
[EventType "swiss"]
[EventCountry "ESP"]
[SourceTitle "playchess.com"]
[Source "ChessBase"]
[SourceQuality "1"]
[TimeControl "5400+30"]

1. d4 {[%emt 0:03:01]} Nf6 {[%emt 0:00:03]} 2. Nf3 {[%emt 0:00:55]} e6 {[%emt 0:00:09]} 3. Bf4 {[%emt 0:00:07]} d5 {[%emt 0:00:12]} 4. e3 {[%emt 0:00:07]} Bd6 {[%emt 0:00:05]} 5. Nbd2 {[%emt 0:00:14]} O-O {[%emt 0:00:10]} 6. c3 {[%emt 0:00:19]} c5 {[%emt 0:00:14]} 7. Bd3 {[%emt 0:01:04]} Qc7 {[%emt 0:00:16]} 8. Bxd6 {[%emt 0:00:33]} Qxd6 {[%emt 0:00:10]} 9. Ne5 {[%emt 0:00:21]} b6 {[%emt 0:06:32]} 10. Qe2 {[%emt 0:28:24]} a5 {[%emt 0:11:21]} 11. h4 {[%emt 0:04:50]} Ba6 {[%emt 0:10:09]} 12. Bxa6 {[%emt 0:00:22]} Nxa6 {[%emt 0:01:18]} 13. h5 {[%emt 0:01:39]} Nd7 {[%emt 0:02:13]} 14. h6 {[%emt 0:02:58]} g6 {[%emt 0:01:32]} 15. Nxd7 {[%emt 0:01:36]} Qxd7 {[%emt 0:02:52]} 16. O-O {[%emt 0:00:10]} Nc7 {[%emt 0:15:22]} 17. Nf3 {[%emt 0:01:31]} cxd4 {[%emt 0:06:33]} 18. exd4 {[%emt 0:00:58]} f6 {[%emt 0:01:06]} 19. Rfe1 {[%emt 0:01:01]} Rfe8 {[%emt 0:01:27]} 20. Nh2 {[%emt 0:03:56]} Nb5 {[%emt 0:04:56]} 21. Ng4 {[%emt 0:02:22]} Kf7 {[%emt 0:00:01]} 22. Qf3 {[%emt 0:02:25]} Qe7 {[%emt 0:00:44]} 23. Qf4 {[%emt 0:02:15]} g5 {[%emt 0:12:49]} 24. Qh2 {[%emt 0:01:02]} Nd6 {[%emt 0:00:54]} 25. Re2 {[%emt 0:02:56]} f5 {[%emt 0:09:18]} 26. Qh5+ {[%emt 0:04:22]} Kg8 {[%emt 0:00:23]} 27. Ne5 {[%emt 0:09:06]} Rac8 {[%emt 0:01:25]} 28. Rae1 {[%emt 0:00:36]} Ne4 {[%emt 0:00:45]} 29. Kh2 {[%emt 0:02:06]} g4 {[%emt 0:02:41]} 30. f3 {[%emt 0:00:58]} Nf6 {[%emt 0:00:15]} 31. Qg5+ {[%emt 0:04:24]} Kh8 {[%emt 0:00:08]} 32. Kh1 {[%emt 0:01:00]} Rg8 {[%emt 0:00:58]} 33. Qh4 {[%emt 0:00:18]} Qf8 {[%emt 0:01:04]} 34. Rf1 {[%emt 0:03:10]} g3 {[%emt 0:00:16]} 35. Rfe1 {[%emt 0:00:20]} b5 {[%emt 0:01:02]} 36. Kg1 {[%emt 0:00:46]} b4 {[%emt 0:02:46]} 37. cxb4 {[%emt 0:00:10]} axb4 {[%emt 0:00:01]} 38. Nd3 {[%emt 0:00:42]} Rg6 {[%emt 0:01:55]} 39. Rxe6 {[%emt 0:04:15]} Rxh6 {[%emt 0:00:32]} 40. Qxg3 {[%emt 0:00:39]} Rc2 {[%emt 0:01:08]} 41. Nf4 {[%emt 0:01:43]} Rxb2 {[%emt 0:00:59]} 42. R6e2 {[%emt 0:05:21]} Rxe2 {[%emt 0:00:16]} 43. Rxe2 {[%emt 0:00:02]} b3 {[%emt 0:01:43]} 44. axb3 {[%emt 0:01:14]} Qa3 {[%emt 0:00:00]} 45. Qe1 {[%emt 0:00:55]} Qxb3 {[%emt 0:00:59]} 46. Qc1 {[%emt 0:00:30]} Qb6 {[%emt 0:00:44]} 47. Qe3 {[%emt 0:00:35]} Qd6 {[%emt 0:01:02]} 48. Ra2 {[%emt 0:01:23]} Qb8 {[%emt 0:00:17]} 49. Ra1 {[%emt 0:00:43]} Ng8 {[%emt 0:01:40]} 50. Nxd5 {[%emt 0:01:24]} Qh2+ {[%emt 0:00:08]} 51. Kf2 {[%emt 0:00:08]} Rc6 {[%emt 0:01:04]} 52. Qe5+ {[%emt 0:02:03]} Qxe5 {[%emt 0:00:02]} 53. dxe5 {[%emt 0:00:05]} Rc5 {[%emt 0:00:00]} 54. Rd1 {[%emt 0:00:16]} Kg7 {[%emt 0:00:10]} 55. f4 {[%emt 0:01:01]} Rc2+ {[%emt 0:00:24]} 56. Kf3 {[%emt 0:00:11]} Nh6 {[%emt 0:00:06]} 57. Ne3 {[%emt 0:00:42]} Rc3 {[%emt 0:00:02]} 58. Kf2 {[%emt 0:00:16]} Ra3 {[%emt 0:01:57]} 59. Rd7+ {[%emt 0:01:13]} Kg6 {[%emt 0:00:00]} 60. g3 {[%emt 0:00:50]} Ng4+ {[%emt 0:00:31]} 61. Nxg4 {[%emt 0:00:10]} fxg4 {[%emt 0:00:01]} 62. Rd8 {[%emt 0:01:01]} Kf5 {[%emt 0:00:32]} 63. Rf8+ {[%emt 0:00:05]} Ke4 {[%emt 0:00:06]} 64. e6 {[%emt 0:00:19]} Ra2+ {[%emt 0:00:43]} 65. Ke1 {[%emt 0:00:05]} Kf3 {[%emt 0:00:35]} 66. f5 {[%emt 0:00:20]} Re2+ {[%emt 0:00:35]} 67. Kd1 {[%emt 0:00:07]} Re5 {[%emt 0:00:31]} 68. Rd8 {[%emt 0:01:18]} Kxg3 {[%emt 0:01:09]} 69. f6 {[%emt 0:00:11]} Rxe6 {[%emt 0:00:04]} 70. f7 {[%emt 0:00:04]} Rf6 {[%emt 0:00:03]} 71. f8=Q {[%emt 0:00:05]} Rxf8 {[%emt 0:00:06]} 72. Rxf8 {[%emt 0:00:04]} h5 {[%emt 0:00:22]} 73. Ke2 {[%emt 0:00:24]} h4 {[%emt 0:00:39]} 74. Rg8 {[%emt 0:00:51]} h3 {[%emt 0:00:49]} 75. Kf1 {[%emt 0:00:13]} Kh2 {[%emt 0:00:09]} 76. Kf2 {[%emt 0:01:06]} Kh1 {[%emt 0:00:04]} 77. Kg3 {[%emt 0:00:20]} h2 {[%emt 0:00:44]} 78. Ra8 {[%emt 0:00:08]} 1-0

[Event "50th Ciudad Sevilla 2024"]
[Site "Sevilla"]
[Date "2025.01.15"]
[Round "6.5"]
[White "Xu, Minghui"]
[Black "Mitusov, Semen"]
[Result "1-0"]
[Annotator "RC"]
[ECO "D25"]
[WhiteElo "2428"]
[BlackElo "2463"]
[PlyCount "85"]
[EventDate "2025.01.10"]
[EventType "swiss"]
[EventCountry "ESP"]
[SourceTitle "playchess.com"]
[Source "ChessBase"]
[SourceQuality "1"]
[TimeControl "5400+30"]

1. d4 {[%emt 0:00:34]} d5 {[%emt 0:00:57]} 2. Nf3 {[%emt 0:00:17]} Nf6 {[%emt 0:00:20]} 3. c4 {[%emt 0:00:27]} dxc4 {[%emt 0:00:49]} 4. e3 {[%emt 0:01:42]} Bg4 {[%emt 0:00:06]} 5. Bxc4 {[%emt 0:00:39]} e6 {[%emt 0:00:08]} 6. h3 {[%emt 0:03:31]} Bh5 {[%emt 0:00:05]} 7. Nc3 {[%emt 0:05:05]} Nc6 {[%emt 0:00:44]} 8. Be2 {[%emt 0:09:02]} Be7 {[%emt 0:08:46]} 9. O-O {[%emt 0:02:02]} O-O {[%emt 0:00:06]} 10. b3 {[%emt 0:02:34]} a6 {[%emt 0:02:52]} 11. Bb2 {[%emt 0:01:02]} Bd6 {[%emt 0:00:14]} 12. Rc1 {[%emt 0:06:22]} Re8 {[%emt 0:03:33]} 13. Nd2 {[%emt 0:04:15]} Bxe2 {[%emt 0:01:06]} 14. Qxe2 {[%emt 0:00:11]} e5 {[%emt 0:04:28]} 15. d5 {[%emt 0:00:17]} Ne7 {[%emt 0:01:07]} 16. e4 {[%emt 0:00:20]} Ng6 {[%emt 0:06:49]} 17. Nc4 {[%emt 0:02:27]} h5 {[%emt 0:10:19]} 18. Qe3 {[%emt 0:06:57]} h4 {[%emt 0:05:03]} 19. Ne2 {[%emt 0:08:04]} Rc8 {[%emt 0:16:00]} 20. Rfd1 {[%emt 0:13:38]} Nf4 {[%emt 0:06:30]} 21. Qf3 {[%emt 0:01:46]} Nxe2+ {[%emt 0:05:14]} 22. Qxe2 {[%emt 0:00:06]} Qe7 {[%emt 0:02:59]} 23. Rc2 {[%emt 0:01:57]} Red8 {[%emt 0:04:17]} 24. Bc1 {[%emt 0:02:26]} Nh7 {[%emt 0:05:06]} 25. Qg4 {[%emt 0:01:32]} Rb8 {[%emt 0:01:52]} 26. Bh6 {[%emt 0:09:19]} Qf6 {[%emt 0:01:51]} 27. Be3 {[%emt 0:00:21]} Bb4 {[%emt 0:01:23]} 28. f4 {[%emt 0:04:09]} exf4 {[%emt 0:02:07]} 29. Bxf4 {[%emt 0:00:05]} Qe7 {[%emt 0:00:55]} 30. e5 {[%emt 0:00:18]} c6 {[%emt 0:01:22]} 31. e6 {[%emt 0:03:55]} Nf6 {[%emt 0:04:33]} 32. Qxh4 {[%emt 0:02:19]} Nxd5 {[%emt 0:02:17]} 33. exf7+ {[%emt 0:00:46]} Qxf7 {[%emt 0:00:18]} 34. Bxb8 {[%emt 0:00:16]} Rxb8 {[%emt 0:00:22]} 35. Kh1 {[%emt 0:04:38]} Re8 {[%emt 0:00:09]} 36. Rf2 {[%emt 0:00:39]} Qe6 {[%emt 0:01:11]} 37. Qh5 {[%emt 0:01:51]} b5 {[%emt 0:02:08]} 38. Ne5 {[%emt 0:00:34]} Bc5 {[%emt 0:00:48]} 39. Rf3 {[%emt 0:02:00]} Rf8 {[%emt 0:00:32]} 40. Nxc6 {[%emt 0:00:58]} Ne3 {[%emt 0:00:32]} 41. Qxc5 {[%emt 0:00:53]} Rxf3 {[%emt 0:00:09]} 42. Rd8+ {[%emt 0:00:05]} Kh7 {[%emt 0:00:13]} 43. Qh5+ {[%emt 0:00:05]} 1-0

[Event "50th Ciudad Sevilla 2024"]
[Site "Sevilla"]
[Date "2025.01.15"]
[Round "6.6"]
[White "Isanzhulov, Arystan"]
[Black "Ilinca, Felix-Antonio"]
[Result "1-0"]
[Annotator "RC"]
[ECO "B13"]
[WhiteElo "2397"]
[BlackElo "2440"]
[PlyCount "51"]
[EventDate "2025.01.10"]
[EventType "swiss"]
[EventCountry "ESP"]
[SourceTitle "playchess.com"]
[Source "ChessBase"]
[SourceQuality "1"]
[TimeControl "5400+30"]

1. e4 {[%emt 0:00:57]} c6 {[%emt 0:00:24]} 2. d4 {[%emt 0:01:10]} d5 {[%emt 0:00:22]} 3. exd5 {[%emt 0:00:05]} cxd5 {[%emt 0:00:16]} 4. Nf3 {[%emt 0:00:05]} Nc6 {[%emt 0:00:55]} 5. c4 {[%emt 0:00:05]} Nf6 {[%emt 0:01:07]} 6. h3 {[%emt 0:01:51]} g6 {[%emt 0:02:33]} 7. c5 {[%emt 0:03:59]} Bg7 {[%emt 0:01:43]} 8. Bb5 {[%emt 0:01:37]} O-O {[%emt 0:05:14]} 9. O-O {[%emt 0:04:33]} Ne4 {[%emt 0:05:57]} 10. Nc3 {[%emt 0:01:31]} Bf5 {[%emt 0:02:12]} 11. Qa4 {[%emt 0:05:33]} Nxc3 {[%emt 0:10:50]} 12. bxc3 {[%emt 0:00:54]} Qc7 {[%emt 0:00:41]} 13. Re1 {[%emt 0:03:58]} Rac8 {[%emt 0:05:38]} 14. Bg5 {[%emt 0:05:33]} Rfe8 {[%emt 0:20:52]} 15. Bh4 {[%emt 0:04:46]} f6 {[%emt 0:03:57]} 16. Bg3 {[%emt 0:13:17]} Qd7 {[%emt 0:01:10]} 17. Nh4 {[%emt 0:00:30]} Be6 {[%emt 0:01:40]} 18. Rab1 {[%emt 0:01:57]} Bf7 {[%emt 0:02:26]} 19. Nf3 {[%emt 0:06:40]} b6 {[%emt 0:13:15]} 20. Qa6 {[%emt 0:08:49]} bxc5 {[%emt 0:06:28]} 21. Ba4 {[%emt 0:00:03]} e5 {[%emt 0:01:03]} 22. dxe5 {[%emt 0:00:06]} fxe5 {[%emt 0:01:26]} 23. Rb7 {[%emt 0:05:14]} Qd6 {[%emt 0:01:32]} 24. Ng5 {[%emt 0:00:58]} Be6 {[%emt 0:00:20]} 25. Rxg7+ {[%emt 0:00:24]} Kxg7 {[%emt 0:00:47]} 26. Bxe5+ {[%emt 0:00:06]} 1-0